fUSD/lending_fUSD_20251017
["ID","MTS","AMOUNT","RATE_DAILY","PERIOD"]
[391710156,1760739053139,-273.099276,0.000429,120]
[391710157,1760739053149,-151.0,0.000429,120]
[391710158,1760739053159,-151.0,0.000429,120]
[391710159,1760739053168,-151.0,0.000429,120]
[391710160,1760739053178,-167.42568727,0.00042901,30]
[391710161,1760739053187,-321.39517214,0.00042901,30]
[391710162,1760739053196,-150.0,0.00042901,30]
[391710163,1760739053206,-150.0,0.00042901,30]
[391710164,1760739053215,-150.0,0.00042937,30]
[391710165,1760739053224,-150.0,0.00042942,30]
[391710166,1760739053233,-151.0,0.00042945,120]
[391710167,1760739053242,-151.0,0.00042945,120]
[391710168,1760739053252,-151.0,0.00042945,120]
[391710169,1760739053262,-151.0,0.00042945,120]
[391710170,1760739053272,-151.0,0.00042945,120]
[391710171,1760739053281,-151.0,0.00042945,120]
[391710172,1760739053290,-284.047684,0.00042945,120]
[391710173,1760739053300,-151.0,0.00042945,120]
[391710174,1760739053309,-151.0,0.00042945,120]
[391710175,1760739053318,-151.0,0.00042945,120]
[391710176,1760739053327,-151.0,0.00042945,120]
[391710177,1760739053337,-151.0,0.00042945,30]
[391710178,1760739053349,-151.0,0.00042945,120]
[391710179,1760739053358,-151.0,0.00042945,120]
[391710180,1760739053368,-151.0,0.00042945,120]
[391710181,1760739053378,-151.0,0.00042945,60]
[391710182,1760739053387,-151.0,0.00042945,120]
[391710183,1760739053397,-151.0,0.00042945,120]
[391710184,1760739053406,-151.0,0.00042945,120]
[391710185,1760739053415,-150.0,0.00042947,30]
[391710186,1760739053424,-167.42568727,0.00042947,30]
[391710187,1760739053434,-150.0,0.00042947,30]
[391710188,1760739053444,-321.39517214,0.00042947,30]
[391710189,1760739053453,-150.0,0.00042964,30]
[391710190,1760739053463,-1376.0,0.00042977,30]
[391710191,1760739053472,-150.0,0.00042985,30]
[391710192,1760739053481,-1127.03299938,0.00042988,41]
[391710193,1760739053491,-167.42568727,0.00042993,30]
[391710194,1760739053500,-321.39517214,0.00042993,30]
[391710195,1760739053509,-500.0,0.00042993,30]
[391710196,1760739053519,-150.0,0.00042995,30]
[391710197,1760739053529,-154.0,0.00043,120]
[391710198,1760739053538,-160.0,0.00043,90]
[391710199,1760739053548,-228.14,0.00043,61]
[391710200,1760739053557,-150.0,0.00043002,30]
[391710201,1760739053567,-150.0,0.00043016,30]
[391710202,1760739053577,-150.0,0.0004302,30]
[391710203,1760739053586,-750.73595736,0.00043025,2]
[391710204,1760739053596,-150.0,0.0004303,30]
[391710205,1760739053605,-150.0,0.00043034,30]
[391710206,1760739053614,-500.0,0.00043035,120]
[391710207,1760739053623,-198.62,0.00043035,2]
[391710208,1760739053633,-174264.72474534,0.00043036,30]
[391710209,1760739053642,-1959.95913161,0.00043036,30]
[391710210,1760739053652,-151.0,0.00043036,30]
[391710211,1760739053663,-151.0,0.00043036,30]
[391710212,1760739053672,-161.0,0.00043036,30]
[391710213,1760739053682,-161.0,0.00043036,30]
[391710214,1760739053691,-161.0,0.00043036,30]
[391710215,1760739053701,-161.0,0.00043036,30]
[391710216,1760739053710,-156.93803787,0.00043036,30]
[391710217,1760739053719,-151.0,0.00043036,30]
[391710218,1760739053732,-151.0,0.00043036,30]
[391710219,1760739053741,-151.0,0.00043036,30]
[391710220,1760739053751,-151.0,0.00043036,30]
[391710221,1760739053760,-151.0,0.00043036,30]
[391710222,1760739053770,-151.0,0.00043036,30]
[391710223,1760739053780,-151.0,0.00043036,30]
[391710224,1760739053789,-151.0,0.00043036,30]
[391710225,1760739053799,-151.0,0.00043036,30]
[391710226,1760739053808,-151.0,0.00043036,30]
[391710227,1760739053817,-151.0,0.00043036,30]
[391710228,1760739053827,-151.0,0.00043036,30]
[391710229,1760739053836,-151.0,0.00043036,30]
[391710230,1760739053847,-151.0,0.00043036,30]
[391710231,1760739053856,-151.0,0.00043036,30]
[391710232,1760739053866,-151.0,0.00043036,30]
[391710233,1760739053876,-151.0,0.00043036,30]
[391710234,1760739053885,-151.0,0.00043036,30]
[391710235,1760739053895,-151.0,0.00043036,30]
[391710236,1760739053904,-151.0,0.00043036,30]
[391710237,1760739053914,-151.0,0.00043036,30]
[391710238,1760739053923,-264.01867422,0.00043036,30]
[391710239,1760739053932,-206.00835492,0.00043036,30]
[391710240,1760739053945,-151.0,0.00043036,120]
[391710241,1760739053954,-151.0,0.00043036,120]
[391710242,1760739053964,-151.0,0.00043036,120]
[391710243,1760739053974,-151.0,0.00043036,120]
[391710244,1760739053983,-151.0,0.00043036,120]
[391710245,1760739053993,-151.0,0.00043036,120]
[391710246,1760739054004,-151.0,0.00043036,120]
[391710247,1760739054021,-151.0,0.00043036,120]
[391710248,1760739054031,-151.0,0.00043036,120]
[391710249,1760739054040,-151.0,0.00043036,120]
[391710250,1760739054049,-569.509894,0.00043036,120]
[391710251,1760739054059,-569.509894,0.00043036,120]
[391710252,1760739054068,-151.0,0.00043036,120]
[391710253,1760739054078,-569.509894,0.00043036,120]
[391710254,1760739054087,-569.509894,0.00043036,120]
[391710255,1760739054097,-151.0,0.00043036,120]
[391710256,1760739054106,-272.239965,0.00043036,120]
[391710257,1760739054116,-272.239965,0.00043036,120]
[391710258,1760739054126,-151.0,0.00043036,120]
[391710259,1760739054135,-272.239965,0.00043036,120]
[391710260,1760739054145,-151.0,0.00043036,120]
[391710261,1760739054154,-151.0,0.00043036,120]
[391710262,1760739054163,-354.88626,0.00043036,120]
[391710263,1760739054172,-272.239965,0.00043036,120]
[391710264,1760739054181,-354.88626,0.00043036,120]
[391710265,1760739054191,-151.0,0.00043036,120]
[391710266,1760739054200,-354.88626,0.00043036,120]
[391710267,1760739054209,-354.88626,0.00043036,120]
[391710268,1760739054219,-151.0,0.00043036,120]
[391710269,1760739054229,-151.0,0.00043036,120]
[391710270,1760739054238,-151.0,0.00043036,120]
[391710271,1760739054248,-169.576052,0.00043036,120]
[391710272,1760739054257,-176.433698,0.00043036,120]
[391710273,1760739054266,-164.573965,0.00043036,120]
[391710274,1760739054276,-169.576052,0.00043036,120]
[391710275,1760739054285,-151.0,0.00043036,120]
[391710276,1760739054294,-169.576052,0.00043036,120]
[391710277,1760739054304,-151.0,0.00043036,120]
[391710278,1760739054313,-169.576052,0.00043036,120]
[391710279,1760739054322,-151.0,0.00043036,120]
[391710280,1760739054332,-151.0,0.00043036,120]
[391710281,1760739054342,-385.536171,0.00043036,30]
[391710282,1760739054352,-151.0,0.00043036,120]
[391710283,1760739054362,-385.536171,0.00043036,30]
[391710284,1760739054371,-151.0,0.00043036,120]
[391710285,1760739054381,-385.536171,0.00043036,30]
[391710286,1760739054390,-151.0,0.00043036,120]
[391710287,1760739054400,-385.536171,0.00043036,30]
[391710288,1760739054409,-151.0,0.00043036,120]
[391710289,1760739054419,-151.0,0.00043036,120]
[391710290,1760739054429,-151.0,0.00043036,120]
[391710291,1760739054438,-151.0,0.00043036,120]
[391710292,1760739054448,-151.0,0.00043036,120]
[391710293,1760739054458,-156.80697,0.00043036,120]
[391710294,1760739054467,-151.0,0.00043036,120]
[391710295,1760739054477,-151.0,0.00043036,120]
[391710296,1760739054486,-151.0,0.00043036,120]
[391710297,1760739054496,-2976.516167,0.00043036,120]
[391710298,1760739054505,-2976.516167,0.00043036,120]
[391710299,1760739054515,-151.0,0.00043036,120]
[391710300,1760739054524,-151.0,0.00043036,120]
[391710301,1760739054534,-2976.516167,0.00043036,120]
[391710302,1760739054543,-151.0,0.00043036,120]
[391710303,1760739054552,-151.0,0.00043036,120]
[391710304,1760739054562,-2976.516167,0.00043036,120]
[391710305,1760739054571,-151.0,0.00043036,120]
[391710306,1760739054580,-151.0,0.00043036,120]
[391710307,1760739054589,-151.0,0.00043036,120]
[391710308,1760739054599,-4386.25227,0.00043036,120]
[391710309,1760739054609,-151.0,0.00043036,120]
[391710310,1760739054618,-151.0,0.00043036,120]
[391710311,1760739054627,-4386.25227,0.00043036,120]
[391710312,1760739054637,-155.036111,0.00043036,120]
[391710313,1760739054646,-4386.25227,0.00043036,120]
[391710314,1760739054656,-151.0,0.00043036,120]
[391710315,1760739054665,-4386.25227,0.00043036,120]
[391710316,1760739054674,-151.0,0.00043036,120]
[391710317,1760739054683,-151.0,0.00043036,120]
[391710318,1760739054693,-151.0,0.00043036,120]
[391710319,1760739054702,-268.388729,0.00043036,120]
[391710320,1760739054712,-151.0,0.00043036,120]
[391710321,1760739054721,-151.0,0.00043036,120]
[391710322,1760739054731,-151.0,0.00043036,120]
[391710323,1760739054739,-268.388729,0.00043036,120]
[391710324,1760739054749,-151.0,0.00043036,120]
[391710325,1760739054759,-151.0,0.00043036,120]
[391710326,1760739054768,-151.0,0.00043036,120]
[391710327,1760739054777,-151.0,0.00043036,120]
[391710328,1760739054787,-268.388729,0.00043036,120]
[391710329,1760739054796,-151.0,0.00043036,60]
[391710330,1760739054806,-268.388729,0.00043036,120]
[391710331,1760739054815,-167.42568727,0.00043039,30]
[391710332,1760739054825,-321.39517214,0.00043039,30]
[391710333,1760739054834,-500.0,0.00043039,17]
[391710334,1760739054843,-2054.254,0.0004304,2]
[391710335,1760739054854,-3408.0,0.0004304,2]
[391710336,1760739054863,-1267.0,0.0004304,2]
[391710337,1760739054872,-749.0,0.0004304,2]
[391710338,1760739054882,-1589.0,0.0004304,2]
[391710339,1760739054891,-572.819,0.0004304,2]
[391710340,1760739054900,-605.0,0.0004304,2]
[391710341,1760739054909,-1310.0,0.0004304,2]
[391710342,1760739054919,-826.0,0.0004304,2]
[391710343,1760739054928,-2546.0,0.0004304,2]
[391710344,1760739054940,-1183.0,0.0004304,2]
[391710345,1760739054953,-902.0,0.0004304,2]
[391710346,1760739054962,-6445.0,0.0004304,2]
[391710347,1760739054972,-6436.0,0.0004304,2]
[391710348,1760739054983,-2589.0,0.0004304,2]
[391710349,1760739054992,-687.548,0.0004304,2]
[391710350,1760739055002,-500.0,0.00043041,30]
[391710351,1760739055011,-150.0,0.00043045,30]
[391710352,1760739055023,-150.0,0.00043048,30]
[391710353,1760739055033,-150.0,0.00043069,30]
[391710354,1760739055042,-1487.31,0.00043073,120]
[391710355,1760739055051,-150.0,0.00043085,30]
[391710356,1760739055061,-167.42568727,0.00043085,30]
[391710357,1760739055071,-321.39517214,0.00043085,30]
[391710358,1760739055081,-150.0,0.00043101,30]
[391710359,1760739055091,-150.0,0.00043112,30]
[391710360,1760739055100,-167.42568727,0.0004313,30]
[391710361,1760739055110,-321.39517214,0.0004313,30]
[391710362,1760739055120,-311.75081399,0.0004315,120]
[391710363,1760739055129,-150.0,0.00043153,30]
[391710364,1760739055139,-150.0,0.00043153,30]
[391710365,1760739055148,-150.0,0.00043153,30]
[391710366,1760739055158,-150.0,0.00043153,30]
[391710367,1760739055167,-150.0,0.00043153,30]
[391710368,1760739055176,-150.0,0.00043153,30]
[391710369,1760739055186,-150.0,0.00043153,30]
[391710370,1760739055195,-150.0,0.00043153,30]
[391710371,1760739055204,-150.0,0.00043153,30]
[391710372,1760739055214,-167.42568727,0.00043176,30]
[391710373,1760739055224,-321.39517214,0.00043176,30]
[391710374,1760739055233,-4411.0,0.00043191,7]
[391710375,1760739055243,-150.0,0.00043195,30]
[391710376,1760739055253,-150.0,0.00043206,30]
[391710377,1760739055262,-150.0,0.00043222,30]
[391710378,1760739055271,-167.42568727,0.00043222,30]
[391710379,1760739055281,-321.39517214,0.00043222,30]
[391710380,1760739055290,-150.0,0.00043238,30]
[391710381,1760739055299,-261.23436234,0.00043258,2]
[391710382,1760739055308,-150.0,0.00043259,30]
[391710383,1760739055318,-196.27808696,0.00043261,18]
[391710384,1760739055328,-150.0,0.00043262,30]
[391710385,1760739055337,-167.42568727,0.00043268,30]
[391710386,1760739055348,-321.39517214,0.00043268,30]
[391710387,1760739055357,-150.0,0.00043273,30]
[391710388,1760739055366,-150.0,0.00043277,30]
[391710389,1760739055376,-749.4127019,0.0004328,120]
[391710390,1760739055385,-150.0,0.00043287,30]
[391710391,1760739055395,-150.0,0.00043291,30]
[391710392,1760739055404,-150.0,0.00043297,120]
[391710393,1760739055415,-167.69861685,0.000433,120]
[391710394,1760739055424,-150.0,0.00043305,30]
[391710395,1760739055434,-150.0,0.00043312,30]
[391710396,1760739055444,-167.42568727,0.00043314,30]
[391710397,1760739055453,-321.39517214,0.00043314,30]
[391710398,1760739055463,-500.0,0.00043315,30]
[391710399,1760739055472,-1091.0,0.0004332,30]
[391710400,1760739055482,-150.0,0.00043322,30]
[391710401,1760739055491,-168.0,0.00043325,2]
[391710402,1760739055501,-150.0,0.00043343,30]
[391710403,1760739055511,-168.0,0.0004335,2]
[391710404,1760739055520,-150.0,0.0004336,30]
[391710405,1760739055530,-167.42568727,0.0004336,30]
[391710406,1760739055540,-150.0,0.0004336,30]
[391710407,1760739055695,-321.39517214,0.0004336,30]
[391710408,1760739055705,-150.0,0.00043365,30]
[391710409,1760739055715,-150.0,0.0004337,30]
[391710410,1760739055724,-1376.0,0.00043398,30]
[391710411,1760739055733,-167.42568727,0.00043406,30]
[391710412,1760739055743,-321.39517214,0.00043406,30]
[391710413,1760739055752,-150.0,0.00043406,30]
[391710414,1760739055761,-150.0,0.00043406,30]
[391710415,1760739055771,-150.0,0.00043418,30]
[391710416,1760739055780,-151.0,0.00043425,120]
[391710417,1760739055789,-151.0,0.00043425,120]
[391710418,1760739055798,-151.0,0.00043425,120]
[391710419,1760739055808,-151.0,0.00043425,120]
[391710420,1760739055817,-151.0,0.00043425,120]
[391710421,1760739055827,-151.0,0.00043425,120]
[391710422,1760739055835,-151.0,0.00043425,120]
[391710423,1760739055845,-151.0,0.00043425,120]
[391710424,1760739055854,-151.0,0.00043425,120]
[391710425,1760739055863,-151.0,0.00043425,120]
[391710426,1760739055873,-151.0,0.00043425,120]
[391710427,1760739055881,-173.474797,0.00043425,120]
[391710428,1760739055891,-151.0,0.00043425,120]
[391710429,1760739055900,-151.0,0.00043425,120]
[391710430,1760739055910,-151.0,0.00043425,120]
[391710431,1760739055919,-151.0,0.00043425,120]
[391710432,1760739055928,-151.0,0.00043425,120]
[391710433,1760739055938,-173.474797,0.00043425,120]
[391710434,1760739055951,-259.13145,0.00043425,120]
[391710435,1760739055961,-151.0,0.00043425,120]
[391710436,1760739055970,-173.474797,0.00043425,120]
[391710437,1760739055979,-173.474797,0.00043425,120]
[391710438,1760739055990,-151.0,0.00043425,120]
[391710439,1760739055999,-151.0,0.00043425,120]
[391710440,1760739056008,-151.0,0.00043425,120]
[391710441,1760739056022,-151.0,0.00043425,120]
[391710442,1760739056031,-151.0,0.00043425,120]
[391710443,1760739056041,-151.0,0.00043425,120]
[391710444,1760739056050,-151.0,0.00043425,120]
[391710445,1760739056059,-151.0,0.00043425,120]
[391710446,1760739056068,-151.0,0.00043425,120]
[391710447,1760739056078,-151.0,0.00043425,120]
[391710448,1760739056087,-151.0,0.00043425,120]
[391710449,1760739056097,-151.0,0.00043425,120]
[391710450,1760739056107,-151.0,0.00043425,120]
[391710451,1760739056117,-151.0,0.00043425,120]
[391710452,1760739056126,-151.0,0.00043425,120]
[391710453,1760739056136,-151.0,0.00043425,120]
[391710454,1760739056146,-396.241571,0.00043425,120]
[391710455,1760739056155,-151.0,0.00043425,120]
[391710456,1760739056165,-396.241571,0.00043425,120]
[391710457,1760739056174,-151.0,0.00043425,120]
[391710458,1760739056184,-151.0,0.00043425,120]
[391710459,1760739056194,-396.241571,0.00043425,120]
[391710460,1760739056205,-151.0,0.00043425,120]
[391710461,1760739056214,-446.082386,0.00043425,120]
[391710462,1760739056223,-396.241571,0.00043425,120]
[391710463,1760739056232,-446.082386,0.00043425,120]
[391710464,1760739056241,-151.0,0.00043425,120]
[391710465,1760739056251,-151.0,0.00043425,120]
[391710466,1760739056260,-446.082386,0.00043425,120]
[391710467,1760739056269,-151.0,0.00043425,120]
[391710468,1760739056278,-151.0,0.00043425,120]
[391710469,1760739056287,-446.082386,0.00043425,120]
[391710470,1760739056297,-448.278612,0.00043425,120]
[391710471,1760739056306,-448.278612,0.00043425,120]
[391710472,1760739056315,-448.278612,0.00043425,120]
[391710473,1760739056324,-448.278612,0.00043425,120]
[391710474,1760739056333,-151.0,0.00043425,120]
[391710475,1760739056343,-151.0,0.00043425,120]
[391710476,1760739056353,-151.0,0.00043425,120]
[391710477,1760739056363,-151.0,0.00043425,120]
[391710478,1760739056372,-280.822506,0.00043425,120]
[391710479,1760739056381,-151.0,0.00043425,120]
[391710480,1760739056391,-151.0,0.00043425,120]
[391710481,1760739056401,-151.0,0.00043425,120]
[391710482,1760739056410,-337.319929,0.00043425,120]
[391710483,1760739056419,-151.0,0.00043425,120]
[391710484,1760739056429,-337.319929,0.00043425,120]
[391710485,1760739056439,-337.319929,0.00043425,120]
[391710486,1760739056449,-337.319929,0.00043425,120]
[391710487,1760739056458,-151.0,0.00043425,120]
[391710488,1760739056468,-151.0,0.00043425,30]
[391710489,1760739056478,-151.0,0.00043425,120]
[391710490,1760739056487,-151.0,0.00043425,120]
[391710491,1760739056497,-151.0,0.00043425,120]
[391710492,1760739056507,-151.0,0.00043425,120]
[391710493,1760739056517,-151.0,0.00043425,120]
[391710494,1760739056526,-151.0,0.00043425,120]
[391710495,1760739056536,-153.078628,0.00043425,120]
[391710496,1760739056545,-153.078628,0.00043425,120]
[391710497,1760739056555,-153.078628,0.00043425,120]
[391710498,1760739056564,-151.0,0.00043425,120]
[391710499,1760739056574,-153.078628,0.00043425,120]
[391710500,1760739056584,-192.780445,0.00043425,120]
[391710501,1760739056593,-192.780445,0.00043425,120]
[391710502,1760739056602,-192.780445,0.00043425,120]
[391710503,1760739056612,-151.0,0.00043425,120]
[391710504,1760739056621,-192.780445,0.00043425,120]
[391710505,1760739056630,-151.0,0.00043425,120]
[391710506,1760739056640,-151.0,0.00043425,120]
[391710507,1760739056650,-151.0,0.00043425,120]
[391710508,1760739056659,-151.0,0.00043425,120]
[391710509,1760739056669,-151.0,0.00043425,120]
[391710510,1760739056679,-151.0,0.00043425,120]
[391710511,1760739056688,-151.0,0.00043425,120]
[391710512,1760739056698,-151.0,0.00043425,120]
[391710513,1760739056708,-151.0,0.00043425,120]
[391710514,1760739056717,-151.0,0.00043425,120]
[391710515,1760739056726,-174.422103,0.00043425,20]
[391710516,1760739056736,-819.892489,0.00043425,120]
[391710517,1760739056745,-174.422103,0.00043425,20]
[391710518,1760739056755,-151.0,0.00043425,120]
[391710519,1760739056764,-819.892489,0.00043425,120]
[391710520,1760739056773,-174.422103,0.00043425,20]
[391710521,1760739056783,-819.892489,0.00043425,120]
[391710522,1760739056792,-174.422103,0.00043425,20]
[391710523,1760739056801,-819.892489,0.00043425,120]
[391710524,1760739056810,-926.247831,0.00043425,120]
[391710525,1760739056820,-151.0,0.00043425,120]
[391710526,1760739056829,-926.247831,0.00043425,120]
[391710527,1760739056838,-151.0,0.00043425,120]
[391710528,1760739056848,-531.141253,0.00043425,120]
[391710529,1760739056857,-926.247831,0.00043425,120]
[391710530,1760739056866,-926.247831,0.00043425,120]
[391710531,1760739056875,-531.141253,0.00043425,120]
[391710532,1760739056885,-778.096736,0.00043425,120]
[391710533,1760739056894,-531.141253,0.00043425,120]
[391710534,1760739056903,-778.096736,0.00043425,120]
[391710535,1760739056913,-531.141253,0.00043425,120]
[391710536,1760739056922,-778.096736,0.00043425,120]
[391710537,1760739056931,-151.0,0.00043425,120]
[391710538,1760739056942,-778.096736,0.00043425,120]
[391710539,1760739056952,-151.0,0.00043425,120]
[391710540,1760739056962,-151.0,0.00043425,120]
[391710541,1760739056971,-220.283149,0.00043425,120]
[391710542,1760739056980,-220.283149,0.00043425,120]
[391710543,1760739056990,-220.283149,0.00043425,120]
[391710544,1760739057000,-220.283149,0.00043425,120]
[391710545,1760739057010,-151.0,0.00043425,120]
[391710546,1760739057021,-287.424504,0.00043425,120]
[391710547,1760739057030,-151.0,0.00043425,120]
[391710548,1760739057039,-287.424504,0.00043425,120]
[391710549,1760739057048,-287.424504,0.00043425,120]
[391710550,1760739057058,-287.424504,0.00043425,120]
[391710551,1760739057067,-151.0,0.00043425,120]
[391710552,1760739057075,-151.0,0.00043425,120]
[391710553,1760739057084,-151.0,0.00043425,120]
[391710554,1760739057094,-151.0,0.00043425,120]
[391710555,1760739057103,-151.0,0.00043425,120]
[391710556,1760739057112,-151.0,0.00043425,120]
[391710557,1760739057122,-274.313792,0.00043425,120]
[391710558,1760739057131,-274.313792,0.00043425,120]
[391710559,1760739057140,-274.313792,0.00043425,120]
[391710560,1760739057150,-274.313792,0.00043425,120]
[391710561,1760739057159,-150.0,0.00043429,30]
[391710562,1760739057168,-150.0,0.00043442,30]
[391710563,1760739057178,-150.0,0.00043443,2]
[391710564,1760739057188,-500.0,0.00043443,120]
[391710565,1760739057197,-500.0,0.00043443,120]
[391710566,1760739057207,-500.0,0.00043443,120]
[391710567,1760739057216,-500.0,0.00043443,17]
[391710568,1760739057225,-500.0,0.00043443,17]
[391710569,1760739057235,-504907.5203,0.00043444,30]
[391710570,1760739057244,-151.0,0.00043444,14]
[391710571,1760739057253,-279.889391,0.00043444,14]
[391710572,1760739057263,-151.0,0.00043444,120]
[391710573,1760739057272,-151.0,0.00043444,120]
[391710574,1760739057283,-151.0,0.00043444,120]
[391710575,1760739057292,-151.0,0.00043444,120]
[391710576,1760739057302,-151.0,0.00043444,120]
[391710577,1760739057311,-151.0,0.00043444,120]
[391710578,1760739057320,-151.0,0.00043444,120]
[391710579,1760739057330,-151.0,0.00043444,120]
[391710580,1760739057339,-151.0,0.00043444,120]
[391710581,1760739057352,-151.0,0.00043444,120]
[391710582,1760739057362,-151.0,0.00043444,120]
[391710583,1760739057371,-151.0,0.00043444,120]
[391710584,1760739057381,-151.0,0.00043444,30]
[391710585,1760739057391,-201.84880705,0.00043444,120]
[391710586,1760739057401,-151.0,0.00043444,120]
[391710587,1760739057410,-151.0,0.00043444,120]
[391710588,1760739057420,-151.0,0.00043444,120]
[391710589,1760739057430,-151.0,0.00043444,120]
[391710590,1760739057439,-151.0,0.00043444,120]
[391710591,1760739057449,-156.055358,0.00043444,120]
[391710592,1760739057459,-156.055358,0.00043444,120]
[391710593,1760739057469,-156.055358,0.00043444,120]
[391710594,1760739057478,-156.055358,0.00043444,120]
[391710595,1760739057488,-151.0,0.00043444,120]
[391710596,1760739057498,-151.0,0.00043444,120]
[391710597,1760739057507,-151.0,0.00043444,120]
[391710598,1760739057517,-151.0,0.00043444,120]
[391710599,1760739057527,-151.0,0.00043444,120]
[391710600,1760739057537,-151.0,0.00043444,120]
[391710601,1760739057547,-151.0,0.00043444,120]
[391710602,1760739057556,-151.0,0.00043444,120]
[391710603,1760739057567,-151.0,0.00043444,120]
[391710604,1760739057576,-151.0,0.00043444,120]
[391710605,1760739057586,-151.0,0.00043444,120]
[391710606,1760739057597,-151.0,0.00043444,120]
[391710607,1760739057607,-151.0,0.00043444,120]
[391710608,1760739057616,-151.0,0.00043444,120]
[391710609,1760739057626,-151.0,0.00043444,120]
[391710610,1760739057636,-151.0,0.00043444,30]
[391710611,1760739057645,-151.0,0.00043444,120]
[391710612,1760739057655,-151.0,0.00043444,120]
[391710613,1760739057665,-151.0,0.00043444,120]
[391710614,1760739057675,-151.0,0.00043444,120]
[391710615,1760739057684,-151.0,0.00043444,120]
[391710616,1760739057694,-151.0,0.00043444,120]
[391710617,1760739057705,-151.0,0.00043444,30]
[391710618,1760739057715,-151.0,0.00043444,120]
[391710619,1760739057724,-151.0,0.00043444,120]
[391710620,1760739057733,-151.0,0.00043444,120]
[391710621,1760739057743,-151.0,0.00043444,120]
[391710622,1760739057752,-151.0,0.00043444,120]
[391710623,1760739057761,-151.0,0.00043444,90]
[391710624,1760739057771,-151.0,0.00043444,120]
[391710625,1760739057787,-151.0,0.00043444,120]
[391710626,1760739057796,-151.0,0.00043444,120]
[391710627,1760739057806,-151.0,0.00043444,120]
[391710628,1760739057815,-151.0,0.00043444,120]
[391710629,1760739057824,-151.0,0.00043444,120]
[391710630,1760739057833,-151.0,0.00043444,120]
[391710631,1760739057843,-151.0,0.00043444,120]
[391710632,1760739057853,-151.0,0.00043444,120]
[391710633,1760739057862,-288.109964,0.00043444,120]
[391710634,1760739057872,-152.987597,0.00043444,120]
[391710635,1760739057881,-151.0,0.00043444,120]
[391710636,1760739057891,-151.0,0.00043444,15]
[391710637,1760739057901,-151.0,0.00043444,15]
[391710638,1760739057910,-151.0,0.00043444,120]
[391710639,1760739057920,-151.0,0.00043444,120]
[391710640,1760739057930,-151.0,0.00043444,120]
[391710641,1760739057942,-151.0,0.00043444,120]
[391710642,1760739057954,-151.0,0.00043444,120]
[391710643,1760739057963,-151.0,0.00043444,120]
[391710644,1760739057972,-151.0,0.00043444,120]
[391710645,1760739057983,-151.0,0.00043444,120]
[391710646,1760739057992,-151.0,0.00043444,120]
[391710647,1760739058003,-151.0,0.00043444,120]
[391710648,1760739058024,-151.0,0.00043444,120]
[391710649,1760739058037,-151.0,0.00043444,120]
[391710650,1760739058047,-151.0,0.00043444,120]
[391710651,1760739058056,-151.0,0.00043444,120]
[391710652,1760739058065,-151.0,0.00043444,120]
[391710653,1760739058074,-151.0,0.00043444,120]
[391710654,1760739058083,-151.0,0.00043444,120]
[391710655,1760739058093,-151.0,0.00043444,120]